[Event "Marcel Invitational Chess-ch 2022"]
[Site "Dhaka"]
[Date "2022.04.21"]
[Round "3.3"]
[White "Ahmed, Sheikh Nasir"]
[Black "Jabed Al Azad"]
[Result "1-0"]
[ECO "A38"]
[WhiteElo "2168"]
[BlackElo "2043"]
[Annotator "TA"]
[PlyCount "88"]
[EventDate "2022.04.18"]
[EventCountry "BAN"]
[SourceTitle "playchess.com"]
[Source "ChessBase"]
[SourceQuality "1"]
[TimeControl "5400+30"]

{[%evp 17,88,38,41,10,22,15,49,29,77,30,24,11,20,8,27,0,42,49,50,58,170,136,142,138,202,91,151,102,133,106,93,64,218,210,214,167,306,325,320,304,833,796,787,810,815,809,798,789,765,731,881,863,987,952,1114,912,1679,1672,1648,1104,1081,927,825,788,815,810,804,793,1026,994,1311,1297,1109]} 1. c4 {[%emt 0:00:09]} Nf6 {[%emt 0:00:05]} 2. g3 {[%emt 0:00:26]} g6 {[%emt 0:00:04]} 3. Bg2 {[%emt 0:00:06]} Bg7 {[%emt 0:00:10]} 4. Nc3 {[%emt 0:00:22]} c5 {[%emt 0:00:56]} 5. Nf3 {[%emt 0:01:37]} Nc6 {[%emt 0:00:04]} 6. d4 {[%emt 0:00:55]} cxd4 {[%emt 0:00:17]} 7. Nxd4 {[%emt 0:00:05]} O-O {[%emt 0:00:16]} 8. O-O {[%emt 0:00:35]} a6 {[%emt 0:06:37] 8...Qa5 is setting a new trend.} 9. Nc2 {[%emt 0:06:47]} d6 {[%emt 0:00:59]} 10. Qd2 {[%emt 0:07:46] A38: Symmetrical English vs ...g6: 4 Bg2 Bg7 5 Nf3 Nf6.} Bd7 {[%emt 0:01:51]} 11. b3 {[%emt 0:02:08]} Rc8 {[%emt 0:00:45]} 12. Bb2 {[%emt 0:00:28] White is slightly better.} Na5 {[%emt 0:00:54]} (12... Re8 $11) 13. Nd4 {[%emt 0:03:18]} (13. Nd5 $16) 13... Nc6 $11 {[%emt 0:04:28]} 14. e3 {[%emt 0:04:42]} Qa5 {[%emt 0:06:14][%cal Ob7b5]} 15. Rfd1 {[%emt 0:21:59] Nxc6 is the strong threat.} Qh5 {[%emt 0:01:07]} 16. Nde2 {[%emt 0:00:57] [#]} Ng4 $146 {[%emt 0:07:46]} ({Predecessor:} 16... Ne5 17. Bxb7 d5 18. Nd4 dxc4 19. Bxc8 Rxc8 20. f4 Neg4 21. bxc4 Rxc4 22. h4 e5 23. Nb3 Rc8 24. Rac1 Bc6 {0-1 (30) Borras Julian,T-Van Tricht,M (2378) ICCF email 2013}) 17. h3 {[%emt 0:01:43]} Nge5 {[%emt 0:00:11]} 18. g4 $36 {[%emt 0:05:05][%mdl 2048] White is pushing.} Bxg4 {[%emt 0:05:10]} 19. hxg4 {[%emt 0:00:08]} Nxg4 {[%emt 0:00:02]} 20. Nd5 {[%emt 0:09:05]} e5 {[%emt 0:05:39] Inhibits Nd4.} (20... Bxb2 $16 21. Qxb2 e6) 21. Kf1 {[%emt 0:08:40]} (21. f3 $18 {is more deadly.} Qh2+ 22. Kf1) 21... Qh4 {[%emt 0:01:31] [#]} ({Black should try} 21... f5) 22. Ng1 {[%emt 0:02:55]} ({White should play} 22. Qe1 $1) 22... f5 {[%emt 0:03:35]} 23. Nh3 {[%emt 0:11:20]} g5 {[%emt 0:07:31]} 24. f3 {[%emt 0:07:37][%cal Bf2f3,Bf3f4][%mdl 32] Strongly threatening Qe1.} Nh6 $2 {[%emt 0:11:39] Black cannot hold the game after this.} (24... Nh2+ $14 25. Kg1 Nxf3+ 26. Bxf3 Qxh3) 25. Qf2 {[%emt 0:00:11] aiming for Qxh4.} Qh5 {[%emt 0:00:13]} 26. Ng1 {[%emt 0:00:06][%cal Bh3g1,Bg1e2,Be2g3][%mdl 32]} g4 {[%emt 0:01:05]} (26... Qg6 $142 27. Rab1 f4) 27. f4 $18 {[%emt 0:00:13]} Nf7 {[%emt 0:06:47]} 28. Ne2 {[%emt 0:00:16]} e4 $2 {[%emt 0:06:05]} (28... Rce8 29. Ng3 Qg6) 29. Bxg7 {[%emt 0:00:10] White is clearly winning.} Kxg7 {[%emt 0:00:01]} 30. Ng3 {[%emt 0:00:20]} Qg6 {[%emt 0:00:57]} 31. Qb2+ {[%emt 0:00:07]} Nfe5 {[%emt 0:04:41]} 32. fxe5 {[%emt 0:00:03]} dxe5 {[%emt 0:01:55]} 33. Nf4 {[%emt 0:00:22]} Qe8 {[%emt 0:01:08]} 34. Rd6 {[%emt 0:00:36]} Kg8 {[%emt 0:01:53]} 35. Nd5 {[%emt 0:01:48]} Kg7 {[%emt 0:02:30]} 36. Rd1 {[%emt 0:00:40]} h5 {[%emt 0:00:45]} 37. Nf4 {[%emt 0:01:15]} h4 {[%emt 0:02:23]} 38. Rg6+ {[%emt 0:00:54]} Qxg6 {[%emt 0:02:57]} 39. Nxg6 {[%emt 0:00:02]} Kxg6 {[%emt 0:00:02]} 40. Rd6+ {[%emt 0:00:19]} Kg5 {[%emt 0:00:07]} 41. Ne2 {[%emt 0:00:32]} Rce8 {[%emt 0:06:24]} 42. Kg1 {[%emt 0:00:44]} h3 {[%emt 0:00:36]} 43. Bf1 {[%emt 0:00:12]} Nd8 {[%emt 0:00:55] [#]} 44. Nf4 $1 {[%emt 0:03:01]} Rf6 {[%emt 0:03:15] Inhibits Rg6+.  Weighted Error Value: White=0.25 (precise) /Black=0.49} 1-0

[Event "Marcel Invitational Chess-ch 2022"]
[Site "Dhaka"]
[Date "2022.04.21"]
[Round "3.4"]
[White "Mukitul, Islam Ripon"]
[Black "Manon, Reja Neer"]
[Result "0-1"]
[ECO "B12"]
[WhiteElo "1983"]
[BlackElo "2209"]
[Annotator "TA"]
[PlyCount "134"]
[EventDate "2022.04.18"]
[EventCountry "BAN"]
[SourceTitle "playchess.com"]
[Source "ChessBase"]
[SourceQuality "1"]
[TimeControl "5400+30"]

{[%evp 13,134,21,22,4,44,-45,-53,-36,0,0,8,1,0,9,83,72,81,37,45,24,36,23,27,-102,0,-52,-6,-10,-45,-45,8,4,0,18,27,11,35,37,37,30,43,37,119,120,114,12,34,34,46,26,29,33,12,24,24,24,22,0,12,0,0,0,0,0,0,0,0,-92,-76,-103,-104,-98,-96,-127,-59,-146,-79,-90,0,-154,-153,-153,-160,-227,-211,-387,-274,-364,-362,-405,-345,-386,-359,-378,-374,-388,-397,-375,-322,-276,-261,-451,-459,-449,-431,-593,-584,-479,-479,-4134,-3672,-29972,-29973,-29975,-29976,-29969,-29973,-29985,-29978,-29978,-29979,-29973,-29944]} 1. e4 {[%emt 1:31:00]} c6 {[%emt 0:20:12]} 2. d4 {[%emt 0:00:00]} d5 {[%emt 0:00:06]} 3. e5 {[%emt 0:00:00]} Bf5 {[%emt 0:00:46]} 4. Bd3 {[%emt 0:00:00]} Bxd3 {[%emt 0:00:11]} 5. Qxd3 {[%emt 0:00:00]} e6 {[%emt 0:00:03]} 6. Nf3 {[%emt 0:00:00]} Nd7 {[%emt 0:00:31]} 7. O-O {[%emt 0:00:00]} Ne7 {[%emt 0:00:40]} 8. b3 {[%emt 0:00:00] B12: Caro-Kann: Advance Variation.} Nf5 {[%emt 0:08:58] [#]} 9. Ba3 $146 {[%emt 0:00:00]} (9. c4 $14) ({Predecessor:} 9. c4 Be7 10. Nc3 h5 11. Rd1 Nh6 12. a4 g5 13. Ba3 Bxa3 14. Rxa3 Qe7 15. Ra2 {0-1 (55) Ferrera Gonzalez,C (1798)-Gonzalez Garcia,Z (1914) Tenerife 2017}) 9... Bxa3 $15 {[%emt 0:07:01]} 10. Nxa3 {[%emt 0:00:00][%cal Bb1a3,Ba3c4,Bc4a5][%mdl 32] Black is slightly better.} Qa5 {[%emt 0:01:28]} (10... Qe7 $5 {[%cal Re7a3]} 11. Nb1 c5 $11) 11. b4 {[%emt 0:00:00]} Qc7 {[%emt 0:06:48]} ({Resist} 11... Qxb4 12. Rab1 Qe7 13. Rxb7 $16) 12. c4 {[%emt 0:00:00]} dxc4 {[%emt 0:08:32]} 13. Nxc4 {[%emt 0:00:00]} h5 {[%emt 0:00:15]} (13... Nb6 $1 $11) 14. Rfc1 {[%emt 0:00:00][%cal Od4d5]} Qd8 {[%emt 0:03:03]} 15. Na5 {[%emt 0:00:00]} Rb8 {[%emt 0:01:40]} 16. a3 {[%emt 0:00:00]} O-O {[%emt 0:01:36]} 17. Qe4 {[%emt 0:00:00]} Nb6 {[%emt 0:05:10]} 18. g4 {[%emt 0:00:00]} (18. Nb3 $11) 18... Nh4 {[%emt 0:09:01]} (18... hxg4 $17 19. Qxg4 Nd5) 19. Rc3 {[%emt 0:00:00]} (19. gxh5 $11 Nxf3+ 20. Qxf3) 19... Qd5 {[%emt 0:04:42]} 20. Qf4 {[%emt 0:00:00]} Ng6 {[%emt 0:03:22]} 21. Qg5 {[%emt 0:00:00]} Qd8 {[%emt 0:03:18]} (21... Qe4 $1 $15 22. Re1 Qxg4+ 23. Qxg4 hxg4) 22. gxh5 $11 {[%emt 0:00:00]} ({Don't go for} 22. Qxh5 $2 Nf4 23. Qh4 Ne2+ 24. Kf1 Qxh4 25. Nxh4 Nxc3 $19) 22... Qxg5+ {[%emt 0:00:09]} 23. Nxg5 {[%emt 0:00:00]} Nf4 {[%emt 0:00:01] Hoping for ...Ne2+.} 24. Re1 {[%emt 0:00:00][%cal Oh5h6,Ba1e1,Be1e4,Be4h4][%mdl 32] Prevents Ne2+.} Rfd8 {[%emt 0:02:44]} 25. Nb3 {[%emt 0:00:00]} Nxh5 {[%emt 0:01:14]} 26. Rf3 {[%emt 0:00:00]} Rd7 {[%emt 0:01:12]} 27. Re4 {[%emt 0:00:00]} Rbd8 {[%emt 0:02:01]} (27... g6 $14) 28. Rh4 {[%emt 0:00:00]} g6 {[%emt 0:00:01]} 29. Ne4 {[%emt 0:00:00]} (29. Nc5 $16) 29... Nd5 {[%emt 0:00:27]} 30. Nbc5 {[%emt 0:00:00]} Rc7 {[%emt 0:02:39]} 31. Nd6 {[%emt 0:00:00]} b6 {[%emt 0:00:17]} 32. Nce4 {[%emt 0:00:00]} Kg7 {[%emt 0:02:18]} 33. Ng5 {[%emt 0:00:00][%cal Rd6f7]} Rxd6 {[%emt 0:01:12]} 34. exd6 {[%emt 0:00:00]} Rd7 {[%emt 0:00:01]} 35. Ne4 {[%emt 0:11:09]} f5 {[%emt 0:01:16]} 36. Nd2 {[%emt 0:01:29]} Ndf6 {[%emt 0:01:02]} 37. Re3 {[%emt 0:01:14]} g5 {[%emt 0:01:36]} 38. Rxh5 {[%emt 0:01:15]} Nxh5 {[%emt 0:00:01]} 39. Rxe6 {[%emt 0:00:02][%mdl 4096] Endgame KRN-KRN} Nf4 {[%emt 0:01:06][%mdl 64] Deflection} 40. Re5 {[%emt 0:00:53]} (40. Re7+ $11 {keeps the balance.} Rxe7 41. dxe7) 40... Rxd6 $17 {[%emt 0:01:07]} 41. Rxf5 {[%emt 0:01:05]} Rxd4 {[%emt 0:00:01]} 42. Nf1 {[%emt 0:01:23]} ({Not} 42. Rxg5+ $2 Kf6 43. h4 Rxd2 $19) 42... Kg6 {[%emt 0:00:53]} 43. Re5 {[%emt 0:00:23]} Rd1 {[%emt 0:00:20]} ({Black should play} 43... Kf6 $1 $17 {[%cal Rf6e5]} 44. Re1 Rd3) 44. f3 {[%emt 0:00:46]} (44. Re7 $15) 44... Nh3+ {[%emt 0:00:20]} (44... Ra1 $142 45. Re3 c5 46. bxc5 bxc5) 45. Kg2 {[%emt 0:00:19] [#]} Nf4+ {[%emt 0:00:02]} (45... Kf6 $142 $1 46. Rf5+ Kxf5 47. Ne3+ Ke5 48. Nxd1 Nf4+ 49. Kg3 Ne6) 46. Kg1 {[%emt 0:00:25] Black continues to play with concentration.} Ra1 {[%emt 0:00:01]} 47. Re3 {[%emt 0:00:16]} Kf6 {[%emt 0:00:43] &Nero is more active.} 48. Rb3 {[%emt 0:02:14]} (48. Kf2 $17 {was necessary.}) 48... Ke5 $19 {[%emt 0:00:53] And now ...Kd4 would win.} 49. Kf2 $2 {[%emt 0:00:35]} (49. Re3+ Kd5 50. Re8) 49... Ra2+ {[%emt 0:00:07]} 50. Ke1 {[%emt 0:00:04]} Kd4 {[%emt 0:00:19]} 51. Ng3 {[%emt 0:00:34]} Kc4 {[%emt 0:00:22]} 52. Rb1 {[%emt 0:00:31]} Rxa3 {[%emt 0:01:09]} 53. Ne4 {[%emt 0:00:08]} Ra2 {[%emt 0:01:24]} 54. Rc1+ {[%emt 0:00:58]} Kxb4 {[%emt 0:00:18]} 55. Rxc6 {[%emt 0:00:06]} Rxh2 {[%emt 0:00:29] aiming for ...Nd3+.} 56. Nxg5 {[%emt 0:00:02]} Kb5 {[%emt 0:00:23]} 57. Rf6 {[%emt 0:00:29]} (57. Rd6) 57... Nd3+ {[%emt 0:00:06]} 58. Kf1 {[%emt 0:00:23]} Nc5 {[%emt 0:00:59] White must now prevent ...a5.} 59. f4 {[%emt 0:00:38]} a5 {[%emt 0:00:27] Threatens to win with ...a4.} 60. Nf3 {[%emt 0:00:02]} Rb2 {[%emt 0:00:39] ...a4 is the strong threat.} 61. f5 {[%emt 0:00:18]} (61. Rf8 $142 a4 62. Ra8) 61... a4 {[%emt 0:00:06] ( -> ...a3)} 62. Rf8 {[%emt 0:01:10]} a3 {[%emt 0:00:14] Black mates.} 63. Nd4+ {[%emt 0:01:14]} Kc4 {[%emt 0:00:19]} 64. Ra8 {[%emt 0:00:51]} a2 {[%emt 0:00:16]} 65. Ne6 {[%emt 0:00:31]} Rb1+ {[%emt 0:00:09]} 66. Kg2 {[%emt 0:00:08]} a1=Q {[%emt 0:00:06]} 67. Rxa1 {[%emt 0:00:05]} Rxa1 {[%emt 0:00:07] Weighted Error Value: White=0.36/Black=0.19 (very precise)} 0-1

[Event "Marcel Invitational Chess-ch 2022"]
[Site "Dhaka"]
[Date "2022.04.21"]
[Round "3.5"]
[White "Islam, Khandaker Aminul"]
[Black "Masum, Hossain"]
[Result "1-0"]
[ECO "D00"]
[WhiteElo "2153"]
[BlackElo "2003"]
[Annotator "TA"]
[PlyCount "64"]
[EventDate "2022.04.18"]
[EventCountry "BAN"]
[SourceTitle "playchess.com"]
[Source "ChessBase"]
[SourceQuality "1"]
[TimeControl "5400+30"]

{[%evp 9,64,23,24,28,92,91,97,79,81,75,155,127,129,129,114,125,355,340,361,354,516,497,509,510,475,438,472,449,472,472,726,279,286,277,629,617,700,733,705,733,695,702,1031,1016,1012,983,29994,29995,29995,29996,29996,29994,29994,0,29996,29991,2206]} 1. d4 {[%emt 0:01:18]} d5 {[%emt 0:00:07]} 2. Bf4 {[%emt 0:00:13]} c5 {[%emt 0:00:03]} 3. e3 {[%emt 0:00:03]} Nc6 {[%emt 0:00:08]} 4. c3 {[%emt 0:00:16]} Qb6 {[%emt 0:00:11]} 5. Qb3 {[%emt 0:00:14]} c4 {[%emt 0:02:15]} 6. Qc2 {[%emt 0:00:02] D00: 1 d4 d5: Unusual lines.} Bf5 {[%emt 0:00:58] 6...e5 might become the main line.} 7. Qxf5 $16 {[%emt 0:01:01]} Qxb2 {[%emt 0:00:05] [#] ...e6 is the strong threat.} 8. Qxd5 {[%emt 0:00:16][%cal Of1c4] White is better.} Qxa1 {[%emt 0:00:19]} 9. Qb5 {[%emt 0:00:07] &Bianco is more active.} O-O-O {[%emt 0:02:02]} ({Black should try} 9... a6 10. Qxb7 Nd8) 10. Qf5+ {[%emt 0:06:11]} e6 {[%emt 0:01:32]} 11. Qc2 {[%emt 0:00:03] [#]} b5 $146 {[%emt 0:17:07]} ({Predecessor:} 11... g5 12. Bg3 Na5 13. Nf3 Rd5 14. Be2 Rb5 15. O-O Nf6 16. Qa4 Rxb1 17. Qxa5 Nd5 18. Qxa7 {1-0 (29) Sedlak,N (2589)-Mihok,O (2445) Hungary 2012}) 12. Nf3 $1 $40 {[%emt 0:04:00][%cal Of1c4][%mdl 128] White wants a kill.} Ba3 $2 {[%emt 0:00:11] [#]} (12... Nf6 $16) 13. Bxc4 $1 $18 {[%emt 1:23:16][%mdl 512]} bxc4 {[%emt 0:02:00]} (13... a6 14. Ng5) 14. O-O {[%emt 0:00:19]} Qb2 {[%emt 0:07:17]} (14... Bb2 $142 15. Qa4 Nge7) 15. Qa4 $1 {[%emt 0:00:16][%csl LRa3,LRc4,LRc6][%cal Ra4c6]} Nge7 {[%emt 0:01:22] Hoping for ...Bd6.} 16. Nxa3 {[%emt 0:01:08]} Qxa2 {[%emt 0:04:07]} 17. Ng5 {[%emt 0:15:00]} ({Weaker is} 17. Qa6+ Kd7 18. Ne5+ Nxe5 $18) 17... Rd5 {[%emt 0:04:55]} 18. Qa6+ {[%emt 0:01:04]} Kd7 {[%emt 0:00:05]} 19. Nxf7 {[%emt 0:02:23] Threatens to win with e4.} Rd8 {[%emt 0:41:00]} (19... Ke8 $142) 20. Nxd8 $2 {[%emt 0:16:28]} (20. e4 Ra5 21. Qb7+ Ke8 22. Nxd8 Nxd8 23. Qc7 Qxa3 24. Bd6 Qxd6 25. Qxd6) 20... Kxd8 {[%emt 0:00:01] [#]} 21. Bc7+ {[%emt 0:01:20]} Kd7 $2 {[%emt 0:03:44] [#]} (21... Ke8 22. e4 Ra5 23. Bxa5 Qxa3 24. Qxc4 Qxa5 25. Qxe6 Qxc3) 22. e4 $1 {[%emt 0:01:45]} Rg5 {[%emt 0:00:20]} (22... Ra5 23. Bxa5) 23. Bf4 {[%emt 0:01:40]} Ra5 {[%emt 0:05:03]} 24. Qb7+ {[%emt 0:46:36]} Ke8 {[%emt 0:00:02]} 25. Nb5 {[%emt 0:00:25]} Qb3 {[%emt 0:01:18]} 26. Nd6+ {[%emt 0:00:16]} Kf8 {[%emt 0:00:03]} 27. Qd7 {[%emt 0:00:10][%csl Gd6][%cal Rd7e8]} g5 {[%emt 0:02:35]} 28. Qe8+ {[%emt 0:00:35]} Kg7 {[%emt 0:00:19]} 29. Qf7+ {[%emt 0:00:16]} Kh6 {[%emt 0:00:56]} 30. Qf6+ {[%emt 0:00:25]} Kh5 {[%emt 0:01:20]} 31. Qf7+ {[%emt 0:01:27]} Kh6 {[%emt 0:01:32]} 32. Qxe6+ {[%emt 0:00:08]} Ng6 {[%emt 0:00:33] Black got outplayed after the opening.  Weighted Error Value: White=0.35/Black=1.02} 1-0

[Event "Marcel Invitational Chess-ch 2022"]
[Site "Dhaka"]
[Date "2022.04.21"]
[Round "3.6"]
[White "Rahman, Syed Mahfuzur"]
[Black "abu, Hanif"]
[Result "1-0"]
[ECO "C02"]
[WhiteElo "2099"]
[BlackElo "2023"]
[Annotator "TA"]
[PlyCount "121"]
[EventDate "2022.04.18"]
[EventCountry "BAN"]
[SourceTitle "playchess.com"]
[Source "ChessBase"]
[SourceQuality "1"]
[TimeControl "5400+30"]

{[%evp 14,121,38,43,65,72,77,71,75,67,79,69,81,50,50,18,13,12,15,10,53,52,57,52,67,59,60,60,56,58,59,35,58,24,31,27,42,19,57,27,34,25,25,25,63,25,80,80,77,68,68,68,68,68,68,25,0,0,66,0,0,0,0,0,152,151,157,151,233,556,735,635,4903,4144,5931,5918,5592,5262,4056,4345,3120,4116,6560,6209,5156,3517,6436,6303,6150,6084,5281,4562,3511,3133,4291,3046,2742,2379,7531,6740,29978,29979,29979,29980,29983,29984,29984,12821,29983,29984]} 1. e4 {[%emt 0:00:47]} e6 {[%emt 0:43:46]} 2. d4 {[%emt 0:00:55]} d5 {[%emt 0:00:17]} 3. e5 {[%emt 0:00:18]} c5 {[%emt 0:00:10]} 4. c3 {[%emt 0:00:01]} Nc6 {[%emt 0:00:05]} 5. Nf3 {[%emt 0:00:42]} cxd4 {[%emt 0:00:09]} 6. cxd4 {[%emt 0:00:08]} Bd7 {[%emt 0:00:09] 6...Nge7 is setting a new trend.} 7. a3 {[%emt 0:00:50]} Qb6 {[%emt 0:00:23]} 8. Nc3 {[%emt 0:01:16]} Na5 {[%emt 0:00:38] C02: French: Advance Variation.} 9. b4 {[%emt 0:13:35]} Qc6 {[%emt 0:03:12]} 10. bxa5 {[%emt 0:20:56]} Qxc3+ {[%emt 0:00:32] White is better.} 11. Bd2 {[%emt 0:00:02] [#]} Qc7 $146 {[%emt 0:00:31]} ({Predecessor:} 11... Qc8 12. Bd3 a6 13. Qb1 Ne7 14. h4 Bc6 15. h5 h6 16. O-O Qd7 17. Rc1 Nc8 {1-0 (33) Mullon,J (2333)-Stenel,V (2103) France 2009}) 12. Rc1 {[%emt 0:03:50]} Qd8 {[%emt 0:00:11]} 13. Qb3 {[%emt 0:00:21]} Rb8 $1 {[%emt 0:01:06]} 14. Bb5 {[%emt 0:06:06]} Bxb5 {[%emt 0:00:46]} 15. Qxb5+ {[%emt 0:00:02]} Qd7 {[%emt 0:00:09]} 16. a4 {[%emt 0:00:21][%cal Ba3a4,Ba4b5][%mdl 32]} h6 {[%emt 0:00:26]} (16... a6 $5 {[%cal Ra6b5]} 17. Qb6 Ne7 $14) 17. Rc7 {[%emt 0:02:06][%csl Gc7][%cal Rb5d7] [#]} Qxb5 {[%emt 0:00:11]} 18. axb5 {[%emt 0:02:37] 0-0 is the strong threat.} Be7 $1 {[%emt 0:01:56]} 19. Ke2 {[%emt 0:01:11] 0x0.001a398f4a34dp-1022s more active pieces.} Bd8 {[%emt 0:00:17]} 20. Rc2 {[%emt 0:00:21]} Ne7 {[%emt 0:00:46]} 21. Rhc1 {[%emt 0:00:12]} Kd7 {[%emt 0:01:15]} 22. Bb4 {[%emt 0:22:14]} Rc8 {[%emt 0:00:24]} 23. Nd2 {[%emt 0:00:52]} Rxc2 {[%emt 0:08:38]} 24. Rxc2 {[%emt 0:00:03]} b6 {[%emt 0:00:14]} 25. a6 {[%emt 0:03:20]} Nc8 {[%emt 0:00:42]} 26. f4 {[%emt 0:05:44][%cal Bf2f4,Bf4f5,Bf5f6][%mdl 32]} Be7 {[%emt 0:00:11]} 27. Bc3 {[%emt 0:00:23]} g5 {[%emt 0:00:14]} 28. Nf3 {[%emt 0:00:57]} Rg8 {[%emt 0:00:44]} 29. Bd2 {[%emt 0:02:09]} g4 {[%emt 0:02:52]} (29... gxf4 $11 30. Kf2 h5) 30. Ne1 $16 {[%emt 0:00:35][%cal Of4f5]} Bf8 {[%emt 0:00:39]} 31. f5 {[%emt 0:01:53] Strongly threatening Rc6.} Ne7 {[%emt 0:00:12] Inhibits Rc6.} 32. f6 {[%emt 0:02:38]} Nf5 {[%emt 0:00:02]} 33. Kd3 {[%emt 0:00:48]} h5 {[%emt 0:00:02][%cal Bh6h5,Bh5h4][%mdl 32]} 34. Rc6 {[%emt 0:02:34]} h4 {[%emt 0:00:11] [#] Hoping for ...h3.} 35. Bf4 {[%emt 0:00:57]} Ba3 {[%emt 0:00:54]} (35... Rh8 $1 $11) 36. Rc2 {[%emt 0:01:08]} (36. Kc3 $1 $14) 36... Bb4 {[%emt 0:00:22]} 37. Rc1 {[%emt 0:00:27]} h3 {[%emt 0:00:35]} 38. Nc2 {[%emt 0:00:50]} Ba5 {[%emt 0:00:43] Black is on the road to losing.} (38... Rc8 $1 $11 39. gxh3 (39. Nxb4 $2 Rxc1 40. gxh3 Rd1+ 41. Ke2 Rxd4 $19) 39... Rc3+ 40. Kd2 Rc4+ 41. Nxb4 Rxb4 42. hxg4 Nxd4) 39. gxh3 {[%emt 0:03:03]} gxh3 {[%emt 0:00:04]} 40. Ne3 {[%emt 0:00:11] Prevents Rg4.} Nxe3 {[%emt 0:02:06]} (40... Nh4 $16 {was necessary.}) 41. Bxe3 {[%emt 0:00:07][%mdl 4096] Endgame KRB-KRB} Rg2 {[%emt 0:02:19]} 42. Rg1 {[%emt 0:00:45] aiming for Rxg2.} Rxg1 {[%emt 0:04:40]} 43. Bxg1 $18 {[%emt 0:00:02] KB-KB} Ke8 {[%emt 0:00:40]} 44. Ke2 {[%emt 0:02:28]} Kf8 {[%emt 0:00:01]} 45. Kf3 {[%emt 0:00:39]} Kg8 {[%emt 0:00:02]} 46. Kg4 {[%emt 0:01:19]} Kh7 {[%emt 0:00:34]} 47. Kxh3 {[%emt 0:00:18]} Kg6 {[%emt 0:00:10]} 48. Kg4 {[%emt 0:00:02]} Bd2 {[%emt 0:01:09]} 49. Bf2 {[%emt 0:00:03] And now Kf3 would win.} Kh6 {[%emt 0:01:34]} 50. Kf3 {[%emt 0:00:51]} Kg5 {[%emt 0:00:19]} 51. Ke2 {[%emt 0:00:19]} Bb4 {[%emt 0:00:53]} 52. Be3+ {[%emt 0:00:20]} Kh4 {[%emt 0:00:28]} 53. Kd3 {[%emt 0:00:35]} Kh3 {[%emt 0:00:27]} 54. Bf4 {[%emt 0:00:28]} Kg4 {[%emt 0:00:36]} 55. Bh6 {[%emt 0:00:31]} Kh3 {[%emt 0:00:42]} 56. Kc2 {[%emt 0:00:25] White threatens Kb3 and mate.} Kxh2 {[%emt 0:05:53]} 57. Kb3 {[%emt 0:00:01]} Be1 {[%emt 0:00:17]} 58. Bf8 {[%emt 0:00:10]} Bf2 {[%emt 0:00:43]} 59. Kc3 {[%emt 0:01:00]} Kg3 {[%emt 0:02:35]} 60. Bd6 {[%emt 0:00:21] White wants to mate with Bb8.} Kf4 {[%emt 0:00:03]} 61. Kd3 {[%emt 0:00:11] Weighted Error Value: White=0.10 (very precise) /Black=0.54} 1-0